Cogmind - Beta 13 X2 @@@ ROGUE MODE // 2024.01.13 @ 01:20:49 Player: Minty Result: Destroyed by 6G-S4P(R) with Subdweller Laser Performance ------------- Evolutions (0) 0 Regions Visited (2) 400 Robots Destroyed (29) 145 Value Destroyed (726) 726 Prototype IDs (0) 0 Alien Tech Used (0) 0 Bonus (0) 0 TOTAL SCORE: 1271 Bonus ------- None Cogmind --------- Core Integrity 0/250 Matter 300/300 Energy 12/100 System Corruption 5% Temperature Cool (6) Movement Treading (160) Location -10/Subcaves Parts ------- > --- POWER (1) -------- (None) > --- PROPULSION (2) --- Light Treads Light Treads > --- UTILITY (2) ------ Medium Storage Unit Makeshift Light Armor Plating > --- WEAPON (2) ------- Heavy Riot Gun Subdweller Beam Cannon > --- INVENTORY (10) --- Wheel Flight Unit Disposable Heat Sink Large Storage Unit Subdweller Optics Multitool Makeshift Hammer Peak State ------------ > --- POWER ------------ Subdweller Power Source > --- PROPULSION ------- Wheel Wheel > --- UTILITY ---------- Medium Storage Unit Makeshift Light Armor Plating > --- WEAPON ----------- Heavy Riot Gun Subdweller Beam Cannon > --- INVENTORY -------- Light Ion Engine Light Treads Light Treads Flight Unit Disposable Heat Sink Large Storage Unit Subdweller Optics Subdweller Machine Gun Multitool Makeshift Hammer [Rating: 16] Favorites ----------- Power Light Ion Engine Engine Light Ion Engine Propulsion Aluminum Leg Treads Light Treads Leg Aluminum Leg Wheel Wheel Flight Unit Flight Unit Utility Medium Storage Unit Device Improved Terrain Scanner Storage Medium Storage Unit Protection Makeshift Light Armor Plating Weapon EM Pulse Gun Energy Gun EM Pulse Gun Energy Cannon Subdweller Beam Cannon Ballistic Gun Subdweller Machine Gun Special Weapon Mining Laser Build | -11 -10 -10 ------- Run | Yrd Mat Sub Slots Evolved . | . . . Power . | . . . Propulsion . | . . . Utility . | . . . Weapon . | . . . Parts Attached 30 | . 7 23 Power 4 | . . 4 Engine 4 | . . 4 Core . | . . . Reactor . | . . . Propulsion 8 | . 1 7 Treads 2 | . . 2 Leg 2 | . 1 1 Wheel 3 | . . 3 Hover . | . . . Flight 1 | . . 1 Utility 4 | . 2 2 Device 2 | . 1 1 Storage 1 | . 1 . Processor . | . . . Hackware . | . . . Protection 1 | . . 1 Artifact . | . . . Weapon 14 | . 4 10 Energy Gun 7 | . 3 4 Energy Cannon 2 | . . 2 Ballistic Gun 4 | . . 4 Ballistic Cannon . | . . . Launcher . | . . . Special Weapon 1 | . 1 . Impact Weapon . | . . . Slashing Weapon . | . . . Piercing Weapon . | . . . Special Melee Weapon . | . . . Unidentified Prototypes . | . . . Corrupted Parts 1 | . . 1 System Corruption 5 | . . 5 Parts Lost 11 | . . 11 Power 3 | . . 3 Propulsion 3 | . . 3 Utility 1 | . . 1 Weapon 4 | . . 4 Highest Loss Streak 3 | . . 3 To Critical Strikes . | . . . Average Slot Usage (%) 92 | . 93 91 Engine 12 | . 14 11 Treads 2 | . . 4 Leg 17 | . 28 6 Wheel 8 | . . 16 Device 5 | . 8 2 Storage 14 | . 14 14 Protection 3 | . . 7 Energy Gun 12 | . 17 6 Energy Cannon 4 | . . 9 Ballistic Gun 10 | . 10 10 Naked Turns . | . . . Heaviest Build 31 | 10 18 31 Greatest Support 40 | 20 20 40 Greatest Overweight (x) 2 | . . 2 Average Overweight (x) . | . . . Largest Inventory Capacity 10 | . 10 10 Average Capacity 9 | . 8 10 Most Carried 10 | . 10 10 Average Carried 8 | . 7 9 Final Capacity 10 | 8 10 10 Final Carried 10 | 6 10 7 Class Distribution -------------------- 90% | Mutant 9% | Scavenger-Mutant Dominant Class ---------------- Mutant | -10/Materials Mutant | -10/Subcaves Resources | -11 -10 -10 ----------- Run | Yrd Mat Sub Matter Collected 583 | 200 85 298 Remotely . | . . . Salvage Created 956 | . 373 583 Parts 71 | . 25 46 Haulers Intercepted 2 | . 2 . Recyclers Shooed 2 | . 2 . Parts Field Recycled . | . . . Retrieved Matter . | . . . Parts Self-Destructed 9 | . . 9 Prevented 1 | . . 1 Kills | -11 -10 -10 ------- Run | Yrd Mat Sub Combat Hostiles Destroyed 25 | . 7 18 Guns 16 | . 7 9 Cannons 9 | . . 9 Classes Destroyed 7 | . 5 2 Tunneler 1 | . 1 . Hauler 2 | . 2 . Watcher 1 | . 1 . Swarmer 10 | . 3 7 Grunt 4 | . 4 . Artisan 1 | . . 1 Subdweller 11 | . . 11 Best Kill Streak 4 | . 3 4 Combat Bots Only 4 | . 3 4 Max Kills in Single Turn 1 | . 1 1 Gunslinging . | . . . Exploded . | . . . Melee . | . . . Uniques/NPCs Destroyed . | . . . Combat | -11 -10 -10 -------- Run | Yrd Mat Sub Hostile Shots Fired 160 | . 34 126 Missed 46 | . 10 36 Damage Taken 1460 | . 232 1228 Core 261 | . 17 244 Absorbed by Shields . | . . . Core Remaining (%) 100 | 100 . . Volleys Fired 100 | . 39 61 Largest 2 | . 2 2 Hottest 140 | . 100 140 Shots Fired 189 | . 73 116 Gun 151 | . 71 80 Cannon 36 | . . 36 Launcher . | . . . Special 2 | . 2 . Kinetic 62 | . 25 37 Thermal 53 | . 17 36 Explosive . | . . . Electromagnetic 74 | . 31 43 Robot Hit Streak 9 | . 7 9 Robot Miss Streak 4 | . 3 4 Penetration Max . | . . . Secondary Targets 3 | . 3 . Max Gunslinging Chain 1 | . 1 . Shots Hit Robots 96 | . 38 58 Core Hits 42 | . 17 25 Critical Kills . | . . . Critical Parts Destroyed . | . . . Critical Strikes . | . . . Melee Attacks . | . . . Impact . | . . . Slashing . | . . . Piercing . | . . . Sneak Attacks . | . . . Combat Hostiles . | . . . Follow-up Attacks . | . . . Damage Inflicted 1664 | . 538 1126 Guns 1126 | . 500 626 Cannons 454 | . . 454 Explosions 74 | . 38 36 Melee . | . . . Ramming 10 | . . 10 Kinetic 497 | . 114 383 Thermal 632 | . 142 490 Explosive . | . . . Electromagnetic 525 | . 282 243 Impact . | . . . Slashing . | . . . Piercing . | . . . Highest Corruption 5 | . . 5 Average Corruption 5 | . . 5 Corruption Purged . | . . . Corruption Blocked . | . . . Effects 18 | . . 18 Message Errors 5 | . . 5 Matter Fused 5 | . . 5 Heat Flow Errors 1 | . . 1 Energy Discharges 1 | . . 1 Data Loss (minor) 4 | . . 4 Data Loss (major) 2 | . . 2 Overload Shots . | . . . Overflow Damage . | . . . Projectiles . | . . . Explosions . | . . . Melee . | . . . Knockbacks 1 | . . 1 Impact 1 | . . 1 Kinetic . | . . . Secondary . | . . . Self-Inflicted Damage . | . . . Shots . | . . . Rammed 4 | . . 4 Targets Rammed 4 | . . 4 Kicked . | . . . Crushed . | . . . Highest Temperature 102 | . 102 98 Average Temperature 20 | . 26 12 Received Heat Transfer 240 | . 45 195 Siege Activations . | . . . Robots Corrupted . | . . . Combat Hostiles . | . . . Parts Fried 4 | . 2 2 Impact Corruptions . | . . . Robots Melted . | . . . Combat Hostiles . | . . . Parts Melted 2 | . 1 1 Heat Transferred 954 | . 275 679 Parts Sabotaged . | . . . Parts Stolen . | . . . Parts Stripped . | . . . Power Chain Reactions 2 | . 1 1 Missiles Intercepted . | . . . Alert | -11 -10 -10 ------- Run | Yrd Mat Sub Peak Influence 201 | . 201 . Initial . | . . . Average 74 | . 74 . Maximum Alert Level 1 | . 1 . Low Security (%) 94 | . 94 . Level 1 5 | . 5 . Level 2 . | . . . Level 3 . | . . . Level 4 . | . . . Level 5 . | . . . High Security . | . . . Max Security . | . . . Squads Dispatched 1 | . 1 . Investigation . | . . . Extermination . | . . . Reinforcement 1 | . 1 . Assault . | . . . Garrison . | . . . Intercept . | . . . Searches Triggered . | . . . Construction Impeded . | . . . Haulers Reinforced . | . . . Active Scanning Responses . | . . . Cargo Convoy Interrupts . | . . . Stealth | -11 -10 -10 --------- Run | Yrd Mat Sub Distress Signals . | . . . Communications Jammed . | . . . Distress Signals . | . . . Times Spotted 33 | . 9 24 Peak Tracking Total 6 | . 3 6 Tactical Retreats 3 | . . 3 Traps | -11 -10 -10 ------- Run | Yrd Mat Sub Traps Triggered . | . . . Indirectly . | . . . Trap Hack Attempts . | . . . Triggered . | . . . Disarmed . | . . . Reprogrammed . | . . . Reused . | . . . Traps Extracted . | . . . Installed . | . . . Triggered . | . . . Machines | -11 -10 -10 ---------- Run | Yrd Mat Sub Machines Disabled 2 | . 2 . Max in Single Turn 1 | . 1 . Machines Repaired . | . . . Machines Dismantled . | . . . Machines Sabotaged . | . . . Overloaded Fab Kills . | . . . Hacking | -11 -10 -10 --------- Run | Yrd Mat Sub Machines Accessed 1 | . . 1 Terminals . | . . . Fabricators . | . . . Repair Stations . | . . . Recycling Units . | . . . Scanalyzers . | . . . Garrison Access . | . . . Total Hacks 2 | . . 2 Successful 2 | . . 2 Failed . | . . . Catastrophic . | . . . Database Lockouts . | . . . Manual . | . . . Terminals . | . . . Fabricators . | . . . Repair Stations . | . . . Recycling Units . | . . . Scanalyzers . | . . . Garrison Access . | . . . Terminal Hacks 2 | . . 2 Record 2 | . . 2 Fabricator Hacks . | . . . Repair Station Hacks . | . . . Recycling Unit Hacks . | . . . Scanalyzer . | . . . Garrison Access Hacks . | . . . Unauthorized Hacks . | . . . Terminals . | . . . Fabricators . | . . . Repair Stations . | . . . Recycling Units . | . . . Scanalyzers . | . . . Garrison Access . | . . . Data Cores Recovered . | . . . Used . | . . . Hacking Detections . | . . . Full Trace Events . | . . . Feedback Events . | . . . Feedback Blocked . | . . . Robot Schematics Acquired . | . . . Robots Built . | . . . Authchips . | . . . Time . | . . . Total Robot Build Rating . | . . . Part Schematics Acquired . | . . . Parts Built . | . . . Authchips . | . . . Time . | . . . Total Part Build Rating . | . . . Parts Repaired . | . . . Time . | . . . Parts Recycled . | . . . Recycled Matter . | . . . Retrieved Matter . | . . . Retrieved Components . | . . . Parts Scanalyzed . | . . . Part Schematics Acquired . | . . . Parts Damaged . | . . . Bothacking | -11 -10 -10 ------------ Run | Yrd Mat Sub Used RIF Installer . | . . . Robots Hacked . | . . . Non-combat . | . . . Combat . | . . . Robot Hacks Applied . | . . . Relay Couplers Released . | . . . Fabnet Peak Effective % . | . . . Robots Rewired . | . . . Allies Hacked . | . . . Hacks Repelled . | . . . Allies | -11 -10 -10 -------- Run | Yrd Mat Sub Total Allies . | . . . Largest Group . | . . . Highest-Rated Group . | . . . Highest-Rated Ally . | . . . Total Orders . | . . . Ally Attacks . | . . . Total Damage . | . . . Kills . | . . . Allies Corrupted . | . . . Allies Melted . | . . . Intel | -11 -10 -10 ------- Run | Yrd Mat Sub Robot Analysis Total . | . . . Derelict Logs Recovered . | . . . Drone Launches . | . . . Drone Recoveries . | . . . Exploration | -11 -10 -10 ------------- Run | Yrd Mat Sub Turns Passed 1640 | . 803 837 Spaces Moved 869 | 1 314 554 Core . | . . . Treads 58 | . . 58 Legs 417 | 1 314 102 Wheels 394 | . . 394 Hover . | . . . Flight . | . . . Fastest Speed 95 | 120 120 95 Average Speed 111 | 120 120 107 Slowest Speed 190 | 120 120 190 Overloaded Moves . | . . . Propulsion Burnouts . | . . . Robots Hopped . | . . . Cave-ins Triggered . | . . . Exploration Rate (%) 33 | 2 49 49 Regions Visited 2 Branch Regions 1 Pre-discovered Areas . | . . . Known Exits Taken . | . . . Unknown Exits Taken 2 | 1 1 . Scrap Searched 1 | . . 1 Spaces Dug 1 | . 1 . Terrain Destroyed 13 | . 2 11 Melee . | . . . Projectile 6 | . 1 5 AOE 7 | . 1 6 Terrain Rammed . | . . . Walls Destroyed . | . . . Machines Disabled . | . . . Actions | -11 -10 -10 --------- Run | Yrd Mat Sub Total 1347 | . 671 676 Wait 306 | . 291 15 Move 867 | . 313 554 Hop . | . . . Pick Up 20 | . 10 10 Fast Attach 9 | . 3 6 Attach 8 | . . 8 Detach 1 | . 1 . Swap 13 | . 4 9 Drop 19 | . 10 9 Fire 100 | . 39 61 Melee . | . . . Ram . | . . . Kick . | . . . Crush 4 | . . 4 Escape Stasis . | . . . Rewire . | . . . Trap . | . . . Miscellaneous . | . . . Route ------- -11/Scrapyard -10/Materials (discovered 4 exits: [*Mat] / [*Min x2] / *Sub) -10/Subcaves (discovered 1 exit: [*Mat]) History --------- Turn | Location | Event 1 | -11/Scrapyard | Discovered new exit (range 0) 1 | -11/Scrapyard | Entered Materials 305 | -10/Materials | Build established: Mutant 372 | -10/Materials | Discovered new exit (range 9) 567 | -10/Materials | Discovered new exit (range 15) 687 | -10/Materials | Discovered new exit (range 15) 752 | -10/Materials | Discovered new exit (range 10) 804 | -10/Materials | Entered Subcaves 1045 | -10/Subcaves | Lost 3 parts (2n1w) 1122 | -10/Subcaves | Discovered new exit (range 9) 1173 | -10/Subcaves | Shifting Twisted Machinery released Mak. Hammer 1182 | -10/Subcaves | Shifting Twisted Machinery released Mak. Light Armor Plating 1315 | -10/Subcaves | Core integrity fell below 50% 1320 | -10/Subcaves | Visited Clippyterm 1494 | -10/Subcaves | Core integrity fell below 20% 1544 | -10/Subcaves | Lost 3 parts (1p1n1w) 1641 | -10/Subcaves | Destroyed by 6G-S4P(R) with Subdweller Laser Last Messages --------------- 01500_ S-10 Pest destroyed. 01501_ Flight Unit fries itself beyond repair. 01508_ Acquired 15 matter. 01509_ Lgt. Ion Engine fries itself beyond repair. 01509_ Acquired 8 matter. 01510_ System corrupted: Component data lost. 01511_ Acquired 13 matter. 01513_ Sub. Machine Gun destroyed. 01515_ Flight Unit fries itself beyond repair. 01570_ System corrupted: Component data lost. 01579_ Slammed into OM-U8K(R). 01579_ OM-U8K(R) knocked back. 01580_ OM-U8K(R) destroyed. 01582_ Lgt. Ion Engine destroyed. 01583_ 1Z-HMF(R) destroyed. 01584_ Acquired 11 matter. 01588_ Extracted 37 energy. 01629_ Slammed into 6G-S4P(R). 01633_ 6G-S4P(R) misfires. 01635_ Slammed into 6G-S4P(R). Map ----- +----------------------------------------------------+ | ?????????????????????# ### #????## | | ?????????????????????# #### #???# | | ?????????????????????# "############ #???#" | | ?????????????????????## ###???????#####???##"" | | ??????????????????????###" "#????????????????### | | ????????????????????????##""##??????????????????# | | ?????????????????????????####???????????????##### | | ??????????????????????????????????### # ##### ## | | ??????????????????????????????????"" | | ?????????????????????????????????#""""" | | ?????????????????????????????#####"" # ### # | | ????????????????????????????## "" ###???## ## | | ????????????????????????????# " ##??# ####? | | ???????????????????????????## "" ##?# #???? | | ??????????????????####????## # """" ### ##??? | | ????????????????### ####"" " " ## ##?? | | ???????????????##" "??""" " ### #?? | | ??????????????##" "???#" ## #?? | | ??????????????#"" "?????# ##?? | | ???????????????# ???????# ##??? | | ??????????????##" #????##### &! # #???? | | ??????????????#" #?#### ####%! ## ##??? | | ??????????????# "### ## ###!%& ### #??? | | ??????????????## "" % !!=##### #??? | | ???????????????# """"" % [##??# #?? | | ???????????????# """""@ # # ##??# #?? | | ??????????????# """##R#### ###??# ##?? | | ??????????????# "" #####??###????# ###??? | | ??????????????## "" #?????????????## ##????? | | ???????????????# ""###??????????????#####??????? | | ???????????????# ??????????????????????????????? | | ???????????????# ???????????????????????????????? | | ????????????????????????????????????????????????? | | ????????????????????????????????????????????????? | | ????????????????????????????????????????????????? | | ????????????????????????????????????????????????? | | ????????????????????????????????????????????????? | | ????????????????????????????????????????????????? | | ????????????????????????????????????????????????? | | ????????????????????????????????????????????????? | | ????????????????????????????????????????????????? | | ????????????????????????????????????????????????? | | ????????????????????????????????????????????????? | | ????????????????????????????????????????????????? | | ????????????????????????????????????????????????? | | ????????????????????????????????????????????????? | | ????????????????????????????????????????????????? | | ????????????????????????????????????????????????? | | ????????????????????????????????????????????????? | | ????????????????????????????????????????????????? | +----------------------------------------------------+ Best States ------------- Heat Dissipation 25 Energy Generation 15 Energy Capacity 200 Matter Stores 300 Matter Capacity 300 Sight Range 21 Terrain Scan Range 16 Terrain Scan Density 10 Armor Coverage 100 Evasion (%) 55 Recoil Reduction 2 Item Schematics ----------------- None Robot Schematics ------------------ None Fabricated ------------ Nothing Alien Tech Used ----------------- None Achievements -------------- None Challenges ------------ None Game ------ Seed HypervelocityMiniPendant Manual? 0 Play Time 00:09:08 Cumulative 588.3 hours Start 2024.01.13 @ 01:13:06 End 2024.01.13 @ 01:20:49 Sessions 1 Manual Loads 0 Difficulty Rogue Special Mode None Game No. 513 Rogue 240 Adventurer 123 Explorer 150 Win Type - Total 25 Types 19/0/4/1/0/0/0/1/0 Lore% 78 Gallery% 90 Achievement% 75 Wizard Run 0 Options --------- ASCII 0 Keyboard 1 Movement Numpad Keybinds 0 Fullscreen 2 Font 18/X11Bold Map View 76x50 Zoom Use 0% Tactical HUD 1 Map Filters NONE Filters NONE Steam 1 RUN: f8c7fb70-5feb-4c38-b524-e6bc3a961f99